Department Family,Entity,Date ,Expense Type,Expense Area,Supplier,Transaction Number,  Amount (�)  
,South West Yorkshire NHS Foundation Trust,06/03/2019,Property Rental,Barnsley,Community Health Partnerships,3099587,"25,050.61"
,South West Yorkshire NHS Foundation Trust,06/03/2019,Electricity,Trustwide,EDF Energy,3099611,"25,332.84"
,South West Yorkshire NHS Foundation Trust,19/03/2019,Communications,Trustwide,Vodafone Corporate Ltd,3101016,"25,745.23"
,South West Yorkshire NHS Foundation Trust,28/02/2019,Communications,Trustwide,Virgin Media Payments Ltd,3098875,"25,806.44"
,South West Yorkshire NHS Foundation Trust,11/03/2019,Purchase of Healthcare,Forensics,Humber NHS Foundation Trust,3100056,"27,014.50"
,South West Yorkshire NHS Foundation Trust,04/03/2019,Property Rental,Kirklees,Bradbury Investments Ltd,3099163,"27,107.82"
,South West Yorkshire NHS Foundation Trust,01/02/2019,Staff recharge,Trustwide,Mid Yorkshire Hospitals NHS Trust,3096064,"27,390.46"
,South West Yorkshire NHS Foundation Trust,05/03/2019,IT Equipment,Trustwide,Dell Corporation Ltd,3099467,"27,456.00"
,South West Yorkshire NHS Foundation Trust,21/03/2019,Staff recharge,Trustwide,Mid Yorkshire Hospitals NHS Trust,3101318,"27,736.98"
,South West Yorkshire NHS Foundation Trust,01/03/2019,Electricity,Trustwide,EDF Energy,3098968,"29,058.25"
,South West Yorkshire NHS Foundation Trust,05/03/2019,IT Equipment,Trustwide,Dell Corporation Ltd,3099472,"29,160.00"
,South West Yorkshire NHS Foundation Trust,01/02/2019,Staff recharge,Trustwide,Mid Yorkshire Hospitals NHS Trust,3096065,"29,452.53"
,South West Yorkshire NHS Foundation Trust,21/03/2019,Property Rental,Barnsley,Community Health Partnerships,3101311,"31,066.10"
,South West Yorkshire NHS Foundation Trust,06/03/2019,Property Rental,Barnsley,Community Health Partnerships,3099585,"31,178.18"
,South West Yorkshire NHS Foundation Trust,01/03/2019,Purchase of Healthcare,Forensics,Cloverleaf Advocacy 2000 Ltd,3099000,"31,415.92"
,South West Yorkshire NHS Foundation Trust,12/02/2019,Staff recharge,Trustwide,Greater Manchester Mental Health NHS Foundation Trust (GMMH),3097209,"31,542.67"
,South West Yorkshire NHS Foundation Trust,04/03/2019,Property Rental,Kirklees,Mid Yorkshire Hospitals NHS Trust,3099226,"34,425.51"
,South West Yorkshire NHS Foundation Trust,21/03/2019,Property Rental,Kirklees,Mid Yorkshire Hospitals NHS Trust,3101320,"34,425.51"
,South West Yorkshire NHS Foundation Trust,28/02/2019,IT Equipment,Trustwide,Dell Corporation Ltd,3098901,"34,731.36"
,South West Yorkshire NHS Foundation Trust,21/03/2019,Staff recharge,Barnsley,Barnsley Hospital NHS Foundation Trust,3101372,"34,812.44"
,South West Yorkshire NHS Foundation Trust,28/03/2019,Staff recharge,Trustwide,Leeds and York Partnership NHS FT,3102192,"34,882.40"
,South West Yorkshire NHS Foundation Trust,08/03/2019,Drugs,Trustwide,Lloyds Pharmacy Ltd,3099817,"35,351.47"
,South West Yorkshire NHS Foundation Trust,07/03/2019,Staff recharge,Trustwide,Leeds and York Partnership NHS FT,3099760,"35,636.02"
,South West Yorkshire NHS Foundation Trust,29/01/2019,Staff recharge,Trustwide,Leeds and York Partnership NHS FT,3095755,"36,658.70"
,South West Yorkshire NHS Foundation Trust,14/03/2019,Purchase of Healthcare,Forensics,Sheffield Children�s NHS Foundation Trust,3100602,"37,086.75"
,South West Yorkshire NHS Foundation Trust,25/02/2019,Drugs,Trustwide,NHSBSA Prescription Pricing Division,3098344,"41,544.32"
,South West Yorkshire NHS Foundation Trust,05/03/2019,IT Equipment,Trustwide,Dell Corporation Ltd,3099477,"43,700.00"
,South West Yorkshire NHS Foundation Trust,05/03/2019,IT Equipment,Trustwide,Dell Corporation Ltd,3099484,"43,700.00"
,South West Yorkshire NHS Foundation Trust,22/03/2019,Drugs,Trustwide,NHSBSA Prescription Pricing Division,3101425,"44,122.11"
,South West Yorkshire NHS Foundation Trust,19/03/2019,IT Equipment,Trustwide,Dell Corporation Ltd,3101064,"47,196.00"
,South West Yorkshire NHS Foundation Trust,05/03/2019,IT Equipment,Trustwide,Dell Corporation Ltd,3099477,"47,304.60"
,South West Yorkshire NHS Foundation Trust,05/03/2019,IT Equipment,Trustwide,Dell Corporation Ltd,3099484,"47,304.60"
,South West Yorkshire NHS Foundation Trust,19/03/2019,IT Equipment,Trustwide,Dell Corporation Ltd,3101021,"52,440.00"
,South West Yorkshire NHS Foundation Trust,29/03/2019,IT Equipment,Trustwide,Dell Corporation Ltd,3102055,"52,440.00"
,South West Yorkshire NHS Foundation Trust,25/03/2019,Project Support,Trustwide,Fischer Associates,3101560,"69,830.00"
,South West Yorkshire NHS Foundation Trust,20/02/2019,Property Rental,Wakefield,Assura HC Ltd,3099712,"90,000.00"
,South West Yorkshire NHS Foundation Trust,06/03/2019,IT Services,Trustwide,Daisy Corporate Services Trading Ltd,3099663,"93,125.00"
,South West Yorkshire NHS Foundation Trust,22/02/2019,IT Services,Trustwide,Softcat Ltd,3098252,"101,878.80"
,South West Yorkshire NHS Foundation Trust,21/02/2019,Drugs,Trustwide,Bradford Teaching Hospitals NHS FT,3099273,"105,625.09"
,South West Yorkshire NHS Foundation Trust,04/03/2019,Property Rental,Kirklees,Bradbury Investments Ltd,3099159,"118,518.12"
,South West Yorkshire NHS Foundation Trust,18/03/2019,Drugs,Trustwide,Bradford Teaching Hospitals NHS FT,3100943,"121,808.39"
LIFT,Rent,06/03/2019,Property Rental,Barnsley,Community Health Partnerships,3099587,"25,050.61",,7251154 Mar19 Rent Roundhouse Medical Centre,201912
Utilities,Electricity,06/03/2019,Electricity,Trustwide,EDF Energy,3099611,"25,332.84",,Feb19 Electricity Fieldhead,201912
IT Services & Systems,Mobile Phones,19/03/2019,Communications,Trustwide,Vodafone Corporate Ltd,3101016,"25,745.23",,For 3414 Mobiles a/c 603987806,201912
Voice & Data,Telephone Rental and call charges,28/02/2019,Communications,Trustwide,Virgin Media Payments Ltd,3098875,"25,806.44",,28/02-27/03/19 UC Cisco Rental Charges a/c 728063901,201912
Forensic CAMHS - Lead Provider,Purchase of Healthcare - Other Public Sector,11/03/2019,Purchase of Healthcare,Forensics,Humber NHS Foundation Trust,3100056,"27,014.50",,7247728 Qtr4 Provision of Community Forensic CAMHs 2018/19,201912
Rent,Lease Rents,04/03/2019,Property Rental,Kirklees,Bradbury Investments Ltd,3099163,"27,107.82",,7244592 25/03-23/06/19 Service Charge Folly Hall Mills,201912
"Post Grad, Medical & Dental Education Income",FY 2,01/02/2019,Staff recharge,Trustwide,Mid Yorkshire Hospitals NHS Trust,3096064,"27,390.46",,18/19 Q3 FY2 Psychiatry Posts,201912
IT Services & Systems,Computer Hardware Purchases,05/03/2019,IT Equipment,Trustwide,Dell Corporation Ltd,3099467,"27,456.00",,7266896 15 x Optiplex 5060 Micro Form Factor CTO + Small Factor CTO,201912
"Post Grad, Medical & Dental Education Income",FY 1,21/03/2019,Staff recharge,Trustwide,Mid Yorkshire Hospitals NHS Trust,3101318,"27,736.98",,"Q4 Jan-Mar19 FY1 Psychiatry Posts 18/19 MS, GL & RW",201912
Utilities,Electricity,01/03/2019,Electricity,Trustwide,EDF Energy,3098968,"29,058.25",,Jan19 Electricity Fieldhead Hospital,201912
IT Services & Systems,Computer Hardware Purchases,05/03/2019,IT Equipment,Trustwide,Dell Corporation Ltd,3099472,"29,160.00",,7266896 50 x Optiplex 5060 Micro Form Factor CTO + Smartcard Reader,201912
"Post Grad, Medical & Dental Education Income",FY 1,01/02/2019,Staff recharge,Trustwide,Mid Yorkshire Hospitals NHS Trust,3096065,"29,452.53",,18/19 Q3 FY1 Psychitary Posts,201912
AWA - Wakefield - ECT Suite Fieldhead,Meeting expenses /Room Hire,21/03/2019,Property Rental,Barnsley,Community Health Partnerships,3101311,"31,066.10",,01/10/18-11/01/19 Room rental for ECT suite at Cudworth,201912
LIFT,Rent,06/03/2019,Property Rental,Barnsley,Community Health Partnerships,3099585,"31,178.18",,7251154 Mar19 Rent The Cudworth Centre,201912
MSU - General Nursing Management,Purchase of Healthcare - Independent Sector,01/03/2019,Purchase of Healthcare,Forensics,Cloverleaf Advocacy 2000 Ltd,3099000,"31,415.92",,7261239 01/12/18-28/02/19 Specialist Advocacy Service,201912
Medical Director Management,Pharmacist Band 8D,12/02/2019,Staff recharge,Trustwide,Greater Manchester Mental Health NHS Foundation Trust (GMMH),3097209,"31,542.67",,01/04/18 - 31/01/19 secondment agreement for Petra Brown,201912
MYT-NK Facilities SLA,Lease Rents,04/03/2019,Property Rental,Kirklees,Mid Yorkshire Hospitals NHS Trust,3099226,"34,425.51",,7260558 Service Charges Priestley Unit DDH,201912
MYT-NK Facilities SLA,Lease Rents,21/03/2019,Property Rental,Kirklees,Mid Yorkshire Hospitals NHS Trust,3101320,"34,425.51",,7260558 P12 Service Chgs for Priestley Unit DDH,201912
Liaison & Diversion Barnsley Team,Computer Hardware Purchases,28/02/2019,IT Equipment,Trustwide,Dell Corporation Ltd,3098901,"34,731.36",,7266246 Laptops x 30 and Monitors x 10,201912
MH Elderly Services Medical Staff,GP Sessions,21/03/2019,Staff recharge,Barnsley,Barnsley Hospital NHS Foundation Trust,3101372,"34,812.44",,"GP Rechgs, 14/09/18-31/03/19 Dr L.Powles & 29/10/18-31/03/19 Dr R.Tibbits",201912
Medical Director Management,Specialty Registrar (CT1-3),28/03/2019,Staff recharge,Trustwide,Leeds and York Partnership NHS FT,3102192,"34,882.40",,Mar19 SHO Rotation 2018/19 Doctors In Training,201912
Pharmacy,Drugs,08/03/2019,Drugs,Trustwide,Lloyds Pharmacy Ltd,3099817,"35,351.47",,Feb19 Goods & Services supplied to SWYPFT,201912
Medical Director Management,Specialty Registrar (CT1-3),07/03/2019,Staff recharge,Trustwide,Leeds and York Partnership NHS FT,3099760,"35,636.02",,Feb19 SHO Rotation Figure 2018/19 Drs in Training,201912
Medical Director Management,Specialty Registrar (CT1-3),29/01/2019,Staff recharge,Trustwide,Leeds and York Partnership NHS FT,3095755,"36,658.70",,Jan19 SHO Rotation 2018/19 Doctors In Training,201912
Forensic CAMHS - Lead Provider,Purchase of Healthcare - Foundation Trust�s,14/03/2019,Purchase of Healthcare,Forensics,Sheffield Children�s NHS Foundation Trust,3100602,"37,086.75",,Qtr 4 18/19 Forensic Camhs Recurrent Funding,201912
Drugs Invoices,Drugs FP10�s,25/02/2019,Drugs,Trustwide,NHSBSA Prescription Pricing Division,3098344,"41,544.32",,Dec18 Recharge for FP(10) Prescriptions,201912
IT Services & Systems,Computer Hardware Purchases,05/03/2019,IT Equipment,Trustwide,Dell Corporation Ltd,3099477,"43,700.00",,7266896 Latitude Processor Base + Adaptors,201912
IT Services & Systems,Computer Hardware Purchases,05/03/2019,IT Equipment,Trustwide,Dell Corporation Ltd,3099484,"43,700.00",,7266896 Latitude Processor Base + Adaptors,201912
Drugs Invoices,Drugs FP10�s,22/03/2019,Drugs,Trustwide,NHSBSA Prescription Pricing Division,3101425,"44,122.11",,Jan19 FP(10) Prescriptions,201912
IT Services & Systems,Computer Hardware Purchases,19/03/2019,IT Equipment,Trustwide,Dell Corporation Ltd,3101064,"47,196.00",,"7267831 45 x Dell Latitude 7290, 45 x Dell Adapter USB-C to VGA",201912
IT Services & Systems,Computer Hardware Purchases,05/03/2019,IT Equipment,Trustwide,Dell Corporation Ltd,3099477,"47,304.60",,7266896 Latitude Processor Base + Adaptors,201912
IT Services & Systems,Computer Hardware Purchases,05/03/2019,IT Equipment,Trustwide,Dell Corporation Ltd,3099484,"47,304.60",,7266896 Latitude Processor Base + Adaptors,201912
IT Services & Systems,Computer Hardware Purchases,19/03/2019,IT Equipment,Trustwide,Dell Corporation Ltd,3101021,"52,440.00",,"7267831 50 x Latitude 7290 Laptop, 50 x Adapter USB-C to VGA",201912
IT Services & Systems,Computer Hardware Purchases,29/03/2019,IT Equipment,Trustwide,Dell Corporation Ltd,3102055,"52,440.00",,7268392 Latitude Laptops and Accessories x 50,201912
Altogether Better,External Consultancy Fees,25/03/2019,Project Support,Trustwide,Fischer Associates,3101560,"69,830.00",,7268828 18/19 Leeds Child & Family Hub Work,201912
Rent,Rent,20/02/2019,Property Rental,Wakefield,Assura HC Ltd,3099712,"90,000.00",,"7267661 25/03/19-23/06/19 Rent Drury Lane, Wakefield Hub",201912
IT Support Contract,Information SLA,06/03/2019,IT Services,Trustwide,Daisy Corporate Services Trading Ltd,3099663,"93,125.00",,7260440 Feb19 IT Managed Services,201912
E-Rostering Project,Computer Software / License  Fees,22/02/2019,IT Services,Trustwide,Softcat Ltd,3098252,"101,878.80",,7265536 HealthRoster Optima Contract 2019-20,201912
Pharmacy - Wakefield/Forensic Service,Drugs,21/02/2019,Drugs,Trustwide,Bradford Teaching Hospitals NHS FT,3099273,"105,625.09",,7252850 Jan19 Rechg for Pharmacy Drugs supplied to FHH,201912
Rent,Lease Rents,04/03/2019,Property Rental,Kirklees,Bradbury Investments Ltd,3099159,"118,518.12",,7244592 25/03-23/06/19 Rent Folly Hall Mills,201912
Pharmacy - Wakefield/Forensic Service,Drugs,18/03/2019,Drugs,Trustwide,Bradford Teaching Hospitals NHS FT,3100943,"121,808.39",,7252850 Feb19 Recharge for Pharmacy Drugs to Fieldhead,201912
